[Event "Late-Titled-Tuesday-Blitz-November-28-2023"]
[Site "Chess.com"]
[Date "2023.11.28"]
[Round "9"]
[White "Real_taiatai"]
[Black "CraiggoryC"]
[Result "1-0"]
[WhiteElo "2380"]
[BlackElo "2178"]
[TimeControl "180+1"]
[EndTime "15:39:08 PST"]
[Termination "Real_taiatai won by resignation"]

1. e4 {[%clk 0:02:57.1]} 1... e6 {[%clk 0:03:00.3]} 2. Nf3 {[%clk 0:02:57.5]}
2... d5 {[%clk 0:02:59.2]} 3. exd5 {[%clk 0:02:57.9]} 3... exd5 {[%clk
0:02:59.7]} 4. d4 {[%clk 0:02:58.6]} 4... Bd6 {[%clk 0:03:00.4]} 5. Be2 {[%clk
0:02:59.5]} 5... Nc6 {[%clk 0:03:00.6]} 6. O-O {[%clk 0:03:00.4]} 6... Nge7
{[%clk 0:03:01.1]} 7. c3 {[%clk 0:03:01.2]} 7... Bg4 {[%clk 0:02:58.6]} 8. Re1
{[%clk 0:03:02.1]} 8... Qd7 {[%clk 0:02:57.4]} 9. Be3 {[%clk 0:03:03]} 9...
O-O-O {[%clk 0:02:57]} 10. Nbd2 {[%clk 0:03:03.9]} 10... f6 {[%clk 0:02:57.1]}
11. b4 {[%clk 0:03:02.9]} 11... Rde8 {[%clk 0:02:57.2]} 12. Nb3 {[%clk
0:03:01.9]} 12... Nf5 {[%clk 0:02:56.2]} 13. Bd2 {[%clk 0:02:59]} 13... g5
{[%clk 0:02:49.2]} 14. a4 {[%clk 0:02:58.4]} 14... h5 {[%clk 0:02:46.2]} 15. a5
{[%clk 0:02:45.8]} 15... Rxe2 {[%clk 0:02:44.1]} 16. Qxe2 {[%clk 0:02:42.5]}
16... Nh4 {[%clk 0:02:43.6]} 17. b5 {[%clk 0:02:41.3]} 17... Bxf3 {[%clk
0:02:38.9]} 18. bxc6 {[%clk 0:02:39.1]} 18... Bxh2+ {[%clk 0:02:19.7]} 19. Kxh2
{[%clk 0:02:16.5]} 19... Qd6+ {[%clk 0:02:17.6]} 20. Bf4 {[%clk 0:02:14.4]}
20... Qxf4+ {[%clk 0:02:17]} 21. g3 {[%clk 0:02:14.8]} 21... Bxe2 {[%clk
0:02:08.1]} 22. gxf4 {[%clk 0:02:14.5]} 22... Nf3+ {[%clk 0:02:07.2]} 23. Kh1
{[%clk 0:02:09.1]} 23... Nxe1 {[%clk 0:02:02.8]} 24. cxb7+ {[%clk 0:02:10]}
24... Kxb7 {[%clk 0:02:00.1]} 25. Rxe1 {[%clk 0:02:10.2]} 25... Bf3+ {[%clk
0:01:56.7]} 26. Kh2 {[%clk 0:02:10.9]} 26... gxf4 {[%clk 0:01:56.3]} 27. Re6
{[%clk 0:02:06.3]} 27... Rg8 {[%clk 0:01:29.6]} 28. Rxf6 {[%clk 0:02:06.1]}
28... Rg2+ {[%clk 0:01:16.1]} 29. Kh3 {[%clk 0:02:06.2]} 29... Kc8 {[%clk
0:00:57.7]} 30. Nc5 {[%clk 0:02:02.1]} 30... Kd8 {[%clk 0:00:49.9]} 31. Rxf4
{[%clk 0:02:01.8]} 31... Rxf2 {[%clk 0:00:49.7]} 32. Kg3 {[%clk 0:01:59]} 32...
Ra2 {[%clk 0:00:47.1]} 33. Rxf3 {[%clk 0:01:57.7]} 33... Rxa5 {[%clk 0:00:47.3]}
34. Kf4 {[%clk 0:01:57.7]} 34... Ra3 {[%clk 0:00:41.8]} 35. Ke5 {[%clk
0:01:57.6]} 35... c6 {[%clk 0:00:41.5]} 36. Kd6 {[%clk 0:01:56.5]} 36... Ke8
{[%clk 0:00:36.6]} 37. Ne6 {[%clk 0:01:56.9]} 1-0

[Event "Late-Titled-Tuesday-Blitz-November-28-2023"]
[Site "Chess.com"]
[Date "2023.11.28"]
[Round "9"]
[White "Dr_crypt"]
[Black "Dino_Ballecer"]
[Result "0-1"]
[WhiteElo "2404"]
[BlackElo "2586"]
[TimeControl "180+1"]
[EndTime "15:39:17 PST"]
[Termination "Dino_Ballecer won by resignation"]

1. Nf3 {[%clk 0:03:00]} 1... Nf6 {[%clk 0:02:58.4]} 2. d4 {[%clk 0:03:00.4]}
2... c5 {[%clk 0:02:58]} 3. d5 {[%clk 0:03:00.4]} 3... e6 {[%clk 0:02:54]} 4.
Nc3 {[%clk 0:02:59.9]} 4... exd5 {[%clk 0:02:53.6]} 5. Nxd5 {[%clk 0:03:00.3]}
5... Nxd5 {[%clk 0:02:52.4]} 6. Qxd5 {[%clk 0:03:01.2]} 6... Nc6 {[%clk
0:02:28.5]} 7. Bg5 {[%clk 0:02:46.3]} 7... Be7 {[%clk 0:02:24.3]} 8. Bxe7 {[%clk
0:02:44.4]} 8... Qxe7 {[%clk 0:02:22]} 9. O-O-O {[%clk 0:02:44.5]} 9... Nb4
{[%clk 0:02:12.1]} 10. Qb3 {[%clk 0:02:37.3]} 10... d6 {[%clk 0:02:05.4]} 11. e3
{[%clk 0:02:24.6]} 11... O-O {[%clk 0:02:01.8]} 12. a3 {[%clk 0:02:24.2]} 12...
Be6 {[%clk 0:02:00.5]} 13. Bc4 {[%clk 0:02:23.9]} 13... d5 {[%clk 0:01:55.9]}
14. Bb5 {[%clk 0:02:19.4]} 14... a6 {[%clk 0:01:54.3]} 15. axb4 {[%clk
0:02:11.5]} 15... axb5 {[%clk 0:01:51.7]} 16. bxc5 {[%clk 0:02:11.4]} 16... d4
{[%clk 0:01:44.3]} 17. Qxb5 {[%clk 0:02:10.6]} 17... dxe3 {[%clk 0:01:41.7]} 18.
fxe3 {[%clk 0:02:10.2]} 18... Rfc8 {[%clk 0:01:24.8]} 19. Nd4 {[%clk 0:01:37.2]}
19... Rxc5 {[%clk 0:01:17.1]} 20. Qd3 {[%clk 0:01:37.3]} 20... Bc4 {[%clk
0:01:05.7]} 21. Nf5 {[%clk 0:01:17]} 21... Rxf5 {[%clk 0:01:04.2]} 22. Qxf5
{[%clk 0:01:14.9]} 22... Qxe3+ {[%clk 0:01:03.5]} 23. Kb1 {[%clk 0:01:12.4]}
23... Ba2+ {[%clk 0:01:03.3]} 24. Ka1 {[%clk 0:01:12.8]} 24... Be6+ {[%clk
0:01:02.9]} 25. Kb1 {[%clk 0:01:13.5]} 25... Bxf5 {[%clk 0:01:02.7]} 0-1

[Event "Late-Titled-Tuesday-Blitz-November-28-2023"]
[Site "Chess.com"]
[Date "2023.11.28"]
[Round "9"]
[White "jinxy2009"]
[Black "falzehope0"]
[Result "1-0"]
[WhiteElo "2288"]
[BlackElo "2332"]
[TimeControl "180+1"]
[EndTime "15:39:27 PST"]
[Termination "jinxy2009 won by resignation"]

1. e4 {[%clk 0:03:00.9]} 1... d5 {[%clk 0:02:58.6]} 2. exd5 {[%clk 0:02:59.2]}
2... Nf6 {[%clk 0:02:58.7]} 3. d4 {[%clk 0:02:58.9]} 3... Qxd5 {[%clk
0:02:57.5]} 4. c4 {[%clk 0:02:59.8]} 4... Qe4+ {[%clk 0:02:57.1]} 5. Be2 {[%clk
0:02:59.1]} 5... e5 {[%clk 0:02:55.9]} 6. dxe5 {[%clk 0:02:56]} 6... Qxe5 {[%clk
0:02:49.2]} 7. Nf3 {[%clk 0:02:55.7]} 7... Qh5 {[%clk 0:02:44.9]} 8. O-O {[%clk
0:02:54.2]} 8... Bd6 {[%clk 0:02:38.5]} 9. Nc3 {[%clk 0:02:45.6]} 9... Bg4
{[%clk 0:02:35.6]} 10. Re1 {[%clk 0:02:26.9]} 10... O-O {[%clk 0:02:33.2]} 11.
Nd5 {[%clk 0:02:17.5]} 11... Bxf3 {[%clk 0:02:28.9]} 12. Bxf3 {[%clk 0:02:18.4]}
12... Qxh2+ {[%clk 0:02:26.4]} 13. Kf1 {[%clk 0:02:18.7]} 13... Nxd5 {[%clk
0:02:17.4]} 14. cxd5 {[%clk 0:02:18.5]} 14... Na6 {[%clk 0:02:15.7]} 15. Be3
{[%clk 0:02:17.5]} 15... Rfe8 {[%clk 0:02:06.7]} 16. Qc2 {[%clk 0:02:10.8]}
16... g6 {[%clk 0:01:48.3]} 17. Ke2 {[%clk 0:02:04.3]} 17... f5 {[%clk 0:01:32]}
18. Rh1 {[%clk 0:02:00.2]} 18... Qe5 {[%clk 0:01:25.2]} 19. g3 {[%clk
0:01:55.5]} 19... f4 {[%clk 0:01:22.5]} 20. gxf4 {[%clk 0:01:55.3]} 20... Qxf4
{[%clk 0:01:22.5]} 21. Qc3 {[%clk 0:01:48.7]} 21... Re7 {[%clk 0:00:59.9]} 22.
Rag1 {[%clk 0:01:42.9]} 22... Rae8 {[%clk 0:00:31.4]} 23. Rxg6+ {[%clk 0:01:40]}
23... hxg6 {[%clk 0:00:14.7]} 24. Qh8+ {[%clk 0:01:39.9]} 1-0

[Event "Late-Titled-Tuesday-Blitz-November-28-2023"]
[Site "Chess.com"]
[Date "2023.11.28"]
[Round "9"]
[White "reevecanada"]
[Black "liwadas82"]
[Result "1-0"]
[WhiteElo "2615"]
[BlackElo "2369"]
[TimeControl "180+1"]
[EndTime "15:40:02 PST"]
[Termination "reevecanada won on time"]

1. d4 {[%clk 0:03:00.9]} 1... Nf6 {[%clk 0:02:58.1]} 2. Bf4 {[%clk 0:03:00.8]}
2... e6 {[%clk 0:02:59]} 3. e3 {[%clk 0:03:00.6]} 3... b6 {[%clk 0:02:58.6]} 4.
c3 {[%clk 0:03:00.5]} 4... Bd6 {[%clk 0:02:52.2]} 5. Bg3 {[%clk 0:02:59.7]} 5...
Bxg3 {[%clk 0:02:51.1]} 6. hxg3 {[%clk 0:02:59.2]} 6... h6 {[%clk 0:02:51.4]} 7.
g4 {[%clk 0:02:59]} 7... g5 {[%clk 0:02:33]} 8. Nf3 {[%clk 0:02:57.4]} 8... Nxg4
{[%clk 0:02:28.6]} 9. Nbd2 {[%clk 0:02:55.6]} 9... Bb7 {[%clk 0:02:26.9]} 10.
Bd3 {[%clk 0:02:54.9]} 10... d6 {[%clk 0:02:23.4]} 11. Ne4 {[%clk 0:02:54.3]}
11... Nd7 {[%clk 0:02:21]} 12. Nfxg5 {[%clk 0:02:52.9]} 12... Ngf6 {[%clk
0:02:07.7]} 13. Qf3 {[%clk 0:02:40.6]} 13... Bxe4 {[%clk 0:01:49.1]} 14. Bxe4
{[%clk 0:02:37.7]} 14... d5 {[%clk 0:01:49.2]} 15. Bd3 {[%clk 0:02:37.4]} 15...
Qe7 {[%clk 0:01:45]} 16. Nh3 {[%clk 0:02:32.3]} 16... O-O-O {[%clk 0:01:43.2]}
17. O-O-O {[%clk 0:02:30.8]} 17... Kb8 {[%clk 0:01:42]} 18. c4 {[%clk
0:02:29.5]} 18... e5 {[%clk 0:01:37.9]} 19. Qf5 {[%clk 0:02:21.5]} 19... exd4
{[%clk 0:01:34]} 20. exd4 {[%clk 0:02:19.9]} 20... dxc4 {[%clk 0:01:33.9]} 21.
Bxc4 {[%clk 0:02:19.5]} 21... Qb4 {[%clk 0:01:32.8]} 22. Qb5 {[%clk 0:02:19]}
22... Qxb5 {[%clk 0:01:27.8]} 23. Bxb5 {[%clk 0:02:18.7]} 23... Nf8 {[%clk
0:01:25.8]} 24. Bc6 {[%clk 0:02:10.8]} 24... Ne6 {[%clk 0:01:17.1]} 25. d5
{[%clk 0:02:10.8]} 25... Nc5 {[%clk 0:01:05.8]} 26. f3 {[%clk 0:02:09.5]} 26...
Ncd7 {[%clk 0:01:02.2]} 27. Rde1 {[%clk 0:02:07.4]} 27... Nc5 {[%clk 0:00:56.1]}
28. Nf4 {[%clk 0:02:05.1]} 28... Rd6 {[%clk 0:00:54.3]} 29. b4 {[%clk
0:02:03.4]} 29... Ncd7 {[%clk 0:00:38.2]} 30. Re7 {[%clk 0:02:00.2]} 30... a5
{[%clk 0:00:29.3]} 31. a3 {[%clk 0:01:56.4]} 31... Rd8 {[%clk 0:00:26.8]} 32.
Rxh6 {[%clk 0:01:54]} 32... Nf8 {[%clk 0:00:07.6]} 33. Rxf7 {[%clk 0:01:51.9]}
33... Ng8 {[%clk 0:00:06]} 34. Rxd6 {[%clk 0:01:51.7]} 34... cxd6 {[%clk
0:00:05.4]} 35. bxa5 {[%clk 0:01:50.5]} 35... bxa5 {[%clk 0:00:05]} 36. Kb2
{[%clk 0:01:50.9]} 36... Nh6 {[%clk 0:00:04.6]} 37. Rb7+ {[%clk 0:01:50.2]}
37... Kc8 {[%clk 0:00:05.1]} 38. Kb3 {[%clk 0:01:50.3]} 38... Nf5 {[%clk
0:00:05.2]} 39. Kc4 {[%clk 0:01:49.4]} 39... Ne3+ {[%clk 0:00:04.9]} 40. Kb5
{[%clk 0:01:49.9]} 40... Nd7 {[%clk 0:00:03.1]} 41. Ne6 {[%clk 0:01:49.4]} 41...
Re8 {[%clk 0:00:02]} 42. Rc7+ {[%clk 0:01:48.7]} 42... Kb8 {[%clk 0:00:01.8]}
43. Rxd7 {[%clk 0:01:48.4]} 1-0

[Event "Late-Titled-Tuesday-Blitz-November-28-2023"]
[Site "Chess.com"]
[Date "2023.11.28"]
[Round "9"]
[White "KorolDimitriy75"]
[Black "Elbebiber"]
[Result "1-0"]
[WhiteElo "2297"]
[BlackElo "2139"]
[TimeControl "180+1"]
[EndTime "15:40:12 PST"]
[Termination "KorolDimitriy75 won by resignation"]

1. d4 {[%clk 0:03:00.9]} 1... Nf6 {[%clk 0:02:59]} 2. c4 {[%clk 0:03:01.2]} 2...
e6 {[%clk 0:02:58.9]} 3. Nc3 {[%clk 0:03:01.5]} 3... Bb4 {[%clk 0:02:55.5]} 4.
Qc2 {[%clk 0:03:01.4]} 4... O-O {[%clk 0:02:50.1]} 5. e4 {[%clk 0:03:01.5]} 5...
d5 {[%clk 0:02:43.4]} 6. cxd5 {[%clk 0:03:02.4]} 6... exd5 {[%clk 0:02:36.9]} 7.
e5 {[%clk 0:03:03]} 7... Ne4 {[%clk 0:02:30.6]} 8. Bd3 {[%clk 0:03:03.6]} 8...
c5 {[%clk 0:02:24.6]} 9. Ne2 {[%clk 0:03:03.5]} 9... cxd4 {[%clk 0:02:21.3]} 10.
Nxd4 {[%clk 0:03:04.4]} 10... Nd7 {[%clk 0:02:07.1]} 11. f4 {[%clk 0:03:03.5]}
11... Qh4+ {[%clk 0:01:56]} 12. g3 {[%clk 0:03:03.2]} 12... Qh5 {[%clk
0:01:26.4]} 13. Be2 {[%clk 0:03:02.4]} 13... Qh3 {[%clk 0:01:03.3]} 14. Bf1
{[%clk 0:03:01.4]} 14... Qh5 {[%clk 0:00:59.3]} 15. Bg2 {[%clk 0:02:58.2]} 15...
Nb6 {[%clk 0:00:40.6]} 16. O-O {[%clk 0:02:51.6]} 16... Bc5 {[%clk 0:00:31.6]}
17. Nb5 {[%clk 0:00:52.6]} 17... Bf5 {[%clk 0:00:14.3]} 18. Bxe4 {[%clk
0:00:45.5]} 18... Bxd4+ {[%clk 0:00:13.6]} 19. Nxd4 {[%clk 0:00:45.3]} 19...
Bxe4 {[%clk 0:00:14.2]} 20. Qe2 {[%clk 0:00:43.5]} 20... Rac8 {[%clk 0:00:12.7]}
21. Qxh5 {[%clk 0:00:42.7]} 1-0

[Event "Late-Titled-Tuesday-Blitz-November-28-2023"]
[Site "Chess.com"]
[Date "2023.11.28"]
[Round "9"]
[White "Perecke"]
[Black "Goryachkina"]
[Result "0-1"]
[WhiteElo "2496"]
[BlackElo "2654"]
[TimeControl "180+1"]
[EndTime "15:40:27 PST"]
[Termination "Goryachkina won by resignation"]

1. e4 {[%clk 0:03:00.9]} 1... c5 {[%clk 0:02:57.9]} 2. Nf3 {[%clk 0:03:01]} 2...
e6 {[%clk 0:02:57.9]} 3. d4 {[%clk 0:03:01.3]} 3... cxd4 {[%clk 0:02:58.2]} 4.
Nxd4 {[%clk 0:03:02.2]} 4... Nc6 {[%clk 0:02:58.5]} 5. Nc3 {[%clk 0:03:02.8]}
5... Bc5 {[%clk 0:02:58.6]} 6. Ndb5 {[%clk 0:02:49.2]} 6... Nf6 {[%clk
0:02:57.5]} 7. Nd6+ {[%clk 0:02:48.8]} 7... Ke7 {[%clk 0:02:54.5]} 8. Bf4 {[%clk
0:02:45.5]} 8... e5 {[%clk 0:02:53.2]} 9. Nf5+ {[%clk 0:02:44.3]} 9... Kf8
{[%clk 0:02:53.4]} 10. Bg5 {[%clk 0:02:43.7]} 10... d6 {[%clk 0:02:52.9]} 11.
Bc4 {[%clk 0:02:35.4]} 11... Be6 {[%clk 0:02:38.7]} 12. Bd5 {[%clk 0:02:31.9]}
12... h6 {[%clk 0:02:19]} 13. Bxf6 {[%clk 0:02:19.8]} 13... Qxf6 {[%clk
0:02:18.7]} 14. O-O {[%clk 0:02:19.7]} 14... g6 {[%clk 0:02:15.2]} 15. Bxe6
{[%clk 0:02:12.6]} 15... Qxe6 {[%clk 0:02:11.8]} 16. Ne3 {[%clk 0:02:11.6]}
16... Kg7 {[%clk 0:02:06.7]} 17. Ned5 {[%clk 0:02:10.9]} 17... Rac8 {[%clk
0:02:04.5]} 18. Ne2 {[%clk 0:02:09.3]} 18... Rhf8 {[%clk 0:02:02.4]} 19. c3
{[%clk 0:02:07]} 19... a6 {[%clk 0:02:01.6]} 20. Qd3 {[%clk 0:01:55.7]} 20... f5
{[%clk 0:01:57]} 21. exf5 {[%clk 0:01:56.1]} 21... gxf5 {[%clk 0:01:56.4]} 22.
Rad1 {[%clk 0:01:54.7]} 22... Rf7 {[%clk 0:01:38.3]} 23. Ng3 {[%clk 0:01:28]}
23... Kh8 {[%clk 0:01:34.5]} 24. Ne3 {[%clk 0:01:16.6]} 24... f4 {[%clk
0:01:27.8]} 25. b4 {[%clk 0:00:54.6]} 25... Ba7 {[%clk 0:01:21.4]} 26. Ne4
{[%clk 0:00:28.8]} 26... fxe3 {[%clk 0:01:20.8]} 27. Nxd6 {[%clk 0:00:24.4]}
27... exf2+ {[%clk 0:01:20.8]} 28. Kh1 {[%clk 0:00:23.6]} 28... Rd8 {[%clk
0:01:13.1]} 29. Nxf7+ {[%clk 0:00:21.7]} 29... Qxf7 {[%clk 0:01:13.4]} 30. Qe2
{[%clk 0:00:15.9]} 30... Rxd1 {[%clk 0:01:12.3]} 31. Rxd1 {[%clk 0:00:16.8]}
31... Qf5 {[%clk 0:01:05.7]} 32. h3 {[%clk 0:00:12.1]} 32... e4 {[%clk
0:01:04.7]} 33. c4 {[%clk 0:00:09.9]} 33... Nd4 {[%clk 0:01:00.8]} 0-1

[Event "Late-Titled-Tuesday-Blitz-November-28-2023"]
[Site "Chess.com"]
[Date "2023.11.28"]
[Round "9"]
[White "Gyulamiryan-koryun"]
[Black "MeesvanOsch"]
[Result "0-1"]
[WhiteElo "1988"]
[BlackElo "2429"]
[TimeControl "180+1"]
[EndTime "15:40:27 PST"]
[Termination "MeesvanOsch won on time"]

1. e4 {[%clk 0:02:58.7]} 1... e6 {[%clk 0:02:58.5]} 2. d4 {[%clk 0:02:57.8]}
2... d5 {[%clk 0:02:58.6]} 3. Nd2 {[%clk 0:02:57.5]} 3... Nf6 {[%clk 0:02:53.8]}
4. e5 {[%clk 0:02:57.2]} 4... Nfd7 {[%clk 0:02:54.4]} 5. Bd3 {[%clk 0:02:57.2]}
5... c5 {[%clk 0:02:54.8]} 6. Ne2 {[%clk 0:02:57.1]} 6... Nc6 {[%clk 0:02:55.5]}
7. Nf3 {[%clk 0:02:55]} 7... cxd4 {[%clk 0:02:55.5]} 8. Nexd4 {[%clk 0:02:51.9]}
8... Nxd4 {[%clk 0:02:37.4]} 9. Nxd4 {[%clk 0:02:51.1]} 9... Nxe5 {[%clk
0:02:38]} 10. Bb5+ {[%clk 0:02:45.7]} 10... Bd7 {[%clk 0:02:36.5]} 11. f4 {[%clk
0:02:30.9]} 11... Bxb5 {[%clk 0:02:06.2]} 12. Nxb5 {[%clk 0:02:29.8]} 12... Nc4
{[%clk 0:02:01.7]} 13. O-O {[%clk 0:02:14.7]} 13... Qb6+ {[%clk 0:01:56.9]} 14.
Nd4 {[%clk 0:02:14.5]} 14... Bc5 {[%clk 0:01:56.5]} 15. c3 {[%clk 0:02:14.1]}
15... O-O {[%clk 0:01:54.5]} 16. Kh1 {[%clk 0:02:13]} 16... a5 {[%clk 0:01:53]}
17. a4 {[%clk 0:01:56.8]} 17... Bxd4 {[%clk 0:01:51.8]} 18. Qxd4 {[%clk
0:01:53.8]} 18... Qxd4 {[%clk 0:01:51.6]} 19. cxd4 {[%clk 0:01:53.7]} 19... Rfc8
{[%clk 0:01:51.4]} 20. b3 {[%clk 0:01:45.4]} 20... Nd6 {[%clk 0:01:50.1]} 21.
Ba3 {[%clk 0:01:44.2]} 21... Ne4 {[%clk 0:01:49.7]} 22. f5 {[%clk 0:01:40.4]}
22... Nd2 {[%clk 0:01:35.3]} 23. Rf2 {[%clk 0:01:35.1]} 23... Nxb3 {[%clk
0:01:34.8]} 24. Rb1 {[%clk 0:01:32.8]} 24... Nxd4 {[%clk 0:01:34.5]} 25. fxe6
{[%clk 0:01:11.2]} 25... fxe6 {[%clk 0:01:33.4]} 26. h3 {[%clk 0:01:09.7]} 26...
Rc7 {[%clk 0:01:26.8]} 27. Bd6 {[%clk 0:01:07.6]} 27... Rd7 {[%clk 0:01:24.6]}
28. Be5 {[%clk 0:01:05.5]} 28... Nc6 {[%clk 0:01:24.9]} 29. Ba1 {[%clk
0:00:59.8]} 29... d4 {[%clk 0:01:24.3]} 30. Rfb2 {[%clk 0:00:47.8]} 30... d3
{[%clk 0:01:22.4]} 31. Rd2 {[%clk 0:00:38.5]} 31... e5 {[%clk 0:01:19.8]} 32.
Kg1 {[%clk 0:00:27.2]} 32... e4 {[%clk 0:01:10.3]} 33. Kf2 {[%clk 0:00:26.9]}
33... Nb4 {[%clk 0:01:10.5]} 34. Ke3 {[%clk 0:00:12.3]} 34... Re8 {[%clk
0:01:11]} 0-1

[Event "Late-Titled-Tuesday-Blitz-November-28-2023"]
[Site "Chess.com"]
[Date "2023.11.28"]
[Round "9"]
[White "alexrustemov"]
[Black "Hilary46"]
[Result "1-0"]
[WhiteElo "2838"]
[BlackElo "2631"]
[TimeControl "180+1"]
[EndTime "15:40:30 PST"]
[Termination "alexrustemov won by resignation"]

1. d4 {[%clk 0:02:56.8]} 1... d5 {[%clk 0:02:58.7]} 2. c4 {[%clk 0:02:56.3]}
2... e6 {[%clk 0:02:59.3]} 3. Nf3 {[%clk 0:02:55.4]} 3... Nf6 {[%clk 0:02:58.8]}
4. Nc3 {[%clk 0:02:51.2]} 4... c6 {[%clk 0:02:58.6]} 5. e3 {[%clk 0:02:50.9]}
5... Nbd7 {[%clk 0:02:58.7]} 6. Qc2 {[%clk 0:02:51.1]} 6... Bd6 {[%clk
0:02:58.1]} 7. Bd2 {[%clk 0:02:51.7]} 7... O-O {[%clk 0:02:57.8]} 8. O-O-O
{[%clk 0:02:52.4]} 8... b5 {[%clk 0:02:18.8]} 9. e4 {[%clk 0:02:48.9]} 9... dxe4
{[%clk 0:02:17]} 10. Nxe4 {[%clk 0:02:47.5]} 10... Nxe4 {[%clk 0:02:16.5]} 11.
Qxe4 {[%clk 0:02:47.8]} 11... bxc4 {[%clk 0:02:12.8]} 12. Bxc4 {[%clk
0:02:47.1]} 12... Nf6 {[%clk 0:02:11.8]} 13. Qc2 {[%clk 0:02:44.8]} 13... a5
{[%clk 0:01:53.9]} 14. Kb1 {[%clk 0:02:43.8]} 14... a4 {[%clk 0:01:40.1]} 15. a3
{[%clk 0:02:41.1]} 15... Qb6 {[%clk 0:01:37.1]} 16. Ka2 {[%clk 0:02:37.9]} 16...
Ba6 {[%clk 0:01:31.2]} 17. Rb1 {[%clk 0:02:12.4]} 17... Rfb8 {[%clk 0:01:21.2]}
18. Rhc1 {[%clk 0:02:10.6]} 18... Bxc4+ {[%clk 0:01:15.9]} 19. Qxc4 {[%clk
0:02:10.5]} 19... Qb3+ {[%clk 0:01:16.8]} 20. Ka1 {[%clk 0:02:09.4]} 20... Nd5
{[%clk 0:01:06.2]} 21. Qxb3 {[%clk 0:02:04]} 21... axb3 {[%clk 0:00:53.9]} 22.
Rxc6 {[%clk 0:02:03.8]} 22... Bb4 {[%clk 0:00:24.1]} 23. Rd1 {[%clk 0:01:39.2]}
23... h6 {[%clk 0:00:22.9]} 24. Kb1 {[%clk 0:01:36.5]} 24... Bf8 {[%clk
0:00:21.6]} 25. Rdc1 {[%clk 0:01:29.7]} 25... Ra4 {[%clk 0:00:16.3]} 26. R1c4
{[%clk 0:01:29.1]} 26... Raa8 {[%clk 0:00:14.8]} 27. Ne5 {[%clk 0:01:24.5]}
27... Ne7 {[%clk 0:00:14.2]} 28. Rc7 {[%clk 0:01:19.9]} 28... f6 {[%clk
0:00:12.7]} 29. Nc6 {[%clk 0:01:18.3]} 29... Nxc6 {[%clk 0:00:11]} 30. R4xc6
{[%clk 0:01:17.2]} 30... Re8 {[%clk 0:00:08.4]} 31. Bc3 {[%clk 0:01:16.1]} 31...
Rab8 {[%clk 0:00:07.4]} 32. Kc1 {[%clk 0:01:14.5]} 32... g5 {[%clk 0:00:04.5]}
33. Kd2 {[%clk 0:01:14.3]} 33... Bg7 {[%clk 0:00:05]} 34. Kd3 {[%clk 0:01:11.4]}
34... f5 {[%clk 0:00:05.5]} 35. Kc4 {[%clk 0:01:09.6]} 35... e5 {[%clk
0:00:05.2]} 36. Rg6 {[%clk 0:01:07.6]} 36... e4 {[%clk 0:00:03.6]} 1-0

[Event "Late-Titled-Tuesday-Blitz-November-28-2023"]
[Site "Chess.com"]
[Date "2023.11.28"]
[Round "9"]
[White "Hirna2005"]
[Black "Redzishchess"]
[Result "1-0"]
[WhiteElo "2353"]
[BlackElo "2458"]
[TimeControl "180+1"]
[EndTime "15:40:35 PST"]
[Termination "Hirna2005 won on time"]

1. e4 {[%clk 0:03:00.9]} 1... c5 {[%clk 0:02:59.7]} 2. c3 {[%clk 0:03:00.8]}
2... e5 {[%clk 0:02:57]} 3. Nf3 {[%clk 0:03:00.4]} 3... Nc6 {[%clk 0:02:56.5]}
4. Bc4 {[%clk 0:02:59.2]} 4... Nf6 {[%clk 0:02:55]} 5. d3 {[%clk 0:02:59.5]}
5... d5 {[%clk 0:02:55.1]} 6. exd5 {[%clk 0:02:58.9]} 6... Nxd5 {[%clk 0:02:56]}
7. O-O {[%clk 0:02:59.1]} 7... Be7 {[%clk 0:02:56.1]} 8. Re1 {[%clk 0:02:58.4]}
8... f6 {[%clk 0:02:55.9]} 9. d4 {[%clk 0:02:49.2]} 9... Nb6 {[%clk 0:02:46.9]}
10. Bb5 {[%clk 0:02:44]} 10... exd4 {[%clk 0:02:28.9]} 11. cxd4 {[%clk
0:02:42.9]} 11... O-O {[%clk 0:02:25.9]} 12. Qb3+ {[%clk 0:02:29.3]} 12... Kh8
{[%clk 0:02:24]} 13. dxc5 {[%clk 0:02:27.9]} 13... Bxc5 {[%clk 0:02:24.9]} 14.
Nc3 {[%clk 0:02:24.3]} 14... Bg4 {[%clk 0:02:13.5]} 15. Ne4 {[%clk 0:02:01.5]}
15... Bb4 {[%clk 0:01:37.2]} 16. Rd1 {[%clk 0:01:48.4]} 16... Qe7 {[%clk
0:01:35.1]} 17. Ng3 {[%clk 0:01:32.1]} 17... Rad8 {[%clk 0:01:09.8]} 18. Bf4
{[%clk 0:01:25.9]} 18... Bxf3 {[%clk 0:00:55.4]} 19. Qxf3 {[%clk 0:01:23.7]}
19... Nd4 {[%clk 0:00:55.5]} 20. Qd3 {[%clk 0:01:23]} 20... Ne6 {[%clk
0:00:46.7]} 21. Qf3 {[%clk 0:01:16.9]} 21... Nxf4 {[%clk 0:00:46.2]} 22. Qxf4
{[%clk 0:01:14.2]} 22... a6 {[%clk 0:00:43.4]} 23. Bf1 {[%clk 0:01:10.8]} 23...
Bd6 {[%clk 0:00:32.9]} 24. Qg4 {[%clk 0:01:02.4]} 24... Bxg3 {[%clk 0:00:32.7]}
25. hxg3 {[%clk 0:01:01.1]} 25... Qe5 {[%clk 0:00:27.1]} 26. Qb4 {[%clk
0:00:58.4]} 26... Qe6 {[%clk 0:00:05.8]} 27. Rd2 {[%clk 0:00:47.2]} 27... Rxd2
{[%clk 0:00:05.4]} 28. Qxf8+ {[%clk 0:00:46.4]} 28... Qg8 {[%clk 0:00:04.2]} 29.
Qb4 {[%clk 0:00:46.2]} 1-0